[Event "Late-Titled-Tuesday-Blitz-April-30-2024"]
[Site "Chess.com"]
[Date "2024.04.30"]
[Round "6"]
[White "laskakid"]
[Black "The_Straightforward_Rook"]
[Result "1-0"]
[WhiteElo "2399"]
[BlackElo "2491"]
[TimeControl "180+1"]
[EndTime "15:08:18 PDT"]
[Termination "laskakid won by checkmate"]

1. e4 {[%clk 0:03:00.9]} 1... e6 {[%clk 0:02:54.9]} 2. d3 {[%clk 0:03:00.2]}
2... d5 {[%clk 0:02:54.2]} 3. Nd2 {[%clk 0:03:00.3]} 3... c5 {[%clk 0:02:54.6]}
4. Ngf3 {[%clk 0:03:00.2]} 4... Nc6 {[%clk 0:02:55.1]} 5. g3 {[%clk 0:03:00.5]}
5... Nf6 {[%clk 0:02:52.2]} 6. Bg2 {[%clk 0:03:00]} 6... Be7 {[%clk 0:02:52.8]}
7. O-O {[%clk 0:03:00.1]} 7... b6 {[%clk 0:02:53]} 8. Re1 {[%clk 0:02:59]} 8...
Bb7 {[%clk 0:02:53]} 9. a3 {[%clk 0:02:58.4]} 9... Qc7 {[%clk 0:02:53.3]} 10. c3
{[%clk 0:02:57.7]} 10... h6 {[%clk 0:02:46.9]} 11. Qe2 {[%clk 0:02:48.4]} 11...
d4 {[%clk 0:02:42.3]} 12. e5 {[%clk 0:02:33]} 12... Nd7 {[%clk 0:02:39.7]} 13.
c4 {[%clk 0:02:26.4]} 13... g5 {[%clk 0:02:37.7]} 14. h3 {[%clk 0:02:17.4]}
14... a5 {[%clk 0:02:37]} 15. Nf1 {[%clk 0:02:17.1]} 15... Rg8 {[%clk
0:02:29.3]} 16. g4 {[%clk 0:02:10.8]} 16... Bf8 {[%clk 0:02:27.2]} 17. Ng3
{[%clk 0:02:10.8]} 17... Bg7 {[%clk 0:02:27]} 18. Ne4 {[%clk 0:01:59.5]} 18...
Ndxe5 {[%clk 0:02:23.4]} 19. Nxe5 {[%clk 0:01:58.6]} 19... Bxe5 {[%clk
0:02:20.3]} 20. Kh1 {[%clk 0:01:43.2]} 20... Bg7 {[%clk 0:02:17.8]} 21. Bd2
{[%clk 0:01:34.9]} 21... Kd7 {[%clk 0:02:07.4]} 22. Rf1 {[%clk 0:01:24]} 22...
f5 {[%clk 0:01:59.2]} 23. Ng3 {[%clk 0:01:11.6]} 23... f4 {[%clk 0:01:52]} 24.
Rfe1 {[%clk 0:00:58.6]} 24... Ne5 {[%clk 0:01:46.6]} 25. Ne4 {[%clk 0:00:43.8]}
25... Rgf8 {[%clk 0:01:31.3]} 26. f3 {[%clk 0:00:42.1]} 26... a4 {[%clk
0:01:26.5]} 27. Rab1 {[%clk 0:00:34.9]} 27... Bc6 {[%clk 0:01:25.9]} 28. b4
{[%clk 0:00:34.1]} 28... axb3 {[%clk 0:01:25.5]} 29. Rxb3 {[%clk 0:00:34.4]}
29... Ra6 {[%clk 0:01:22.4]} 30. Reb1 {[%clk 0:00:33.4]} 30... Rfa8 {[%clk
0:01:18.9]} 31. Bc1 {[%clk 0:00:31.8]} 31... Qb7 {[%clk 0:01:16.9]} 32. Qb2
{[%clk 0:00:25.9]} 32... Bxe4 {[%clk 0:01:13.5]} 33. fxe4 {[%clk 0:00:24.2]}
33... Kc7 {[%clk 0:01:07.7]} 34. a4 {[%clk 0:00:21.3]} 34... Nd7 {[%clk
0:01:02.6]} 35. e5 {[%clk 0:00:16.5]} 35... Qa7 {[%clk 0:00:58.9]} 36. Bxa8
{[%clk 0:00:15.2]} 36... Qxa8+ {[%clk 0:00:59.6]} 37. Qg2 {[%clk 0:00:15.4]}
37... Qxg2+ {[%clk 0:00:58.4]} 38. Kxg2 {[%clk 0:00:14.9]} 38... Nxe5 {[%clk
0:00:57.2]} 39. a5 {[%clk 0:00:14.8]} 39... Nd7 {[%clk 0:00:48.5]} 40. axb6+
{[%clk 0:00:14.2]} 40... Nxb6 {[%clk 0:00:49.4]} 41. Bd2 {[%clk 0:00:13.5]}
41... Ra2 {[%clk 0:00:27]} 42. R1b2 {[%clk 0:00:13.2]} 42... Rxb2 {[%clk
0:00:27]} 43. Rxb2 {[%clk 0:00:13.6]} 43... Kc6 {[%clk 0:00:24]} 44. Kf3 {[%clk
0:00:12.5]} 44... Nd7 {[%clk 0:00:24.2]} 45. Ke4 {[%clk 0:00:12.2]} 45... Bf8
{[%clk 0:00:22.8]} 46. Ba5 {[%clk 0:00:10.7]} 46... Bd6 {[%clk 0:00:22.8]} 47.
Bd8 {[%clk 0:00:08.3]} 47... Ne5 {[%clk 0:00:19]} 48. Rb6+ {[%clk 0:00:05.2]}
48... Kd7 {[%clk 0:00:18.9]} 49. Bf6 {[%clk 0:00:05.4]} 49... Ng6 {[%clk
0:00:18.5]} 50. Bg7 {[%clk 0:00:05]} 50... Nh4 {[%clk 0:00:14.9]} 51. Bxh6
{[%clk 0:00:04.7]} 51... f3 {[%clk 0:00:15.4]} 52. Rb2 {[%clk 0:00:04]} 52...
Bg3 {[%clk 0:00:14.7]} 53. Bxg5 {[%clk 0:00:04.2]} 53... f2 {[%clk 0:00:15.1]}
54. Rb1 {[%clk 0:00:04.1]} 54... Ng2 {[%clk 0:00:13.6]} 55. Kf3 {[%clk
0:00:03.5]} 55... Ne3 {[%clk 0:00:13.2]} 56. Kxg3 {[%clk 0:00:02.6]} 56... f1=Q
{[%clk 0:00:13.1]} 57. Rxf1 {[%clk 0:00:02]} 57... Nxf1+ {[%clk 0:00:14]} 58.
Kf2 {[%clk 0:00:02.3]} 58... Nh2 {[%clk 0:00:14.1]} 59. Kg2 {[%clk 0:00:02.4]}
59... e5 {[%clk 0:00:12.2]} 60. Kxh2 {[%clk 0:00:02.5]} 60... e4 {[%clk
0:00:13.1]} 61. dxe4 {[%clk 0:00:02.3]} 61... Ke6 {[%clk 0:00:13.7]} 62. Bd2
{[%clk 0:00:02.6]} 62... Ke5 {[%clk 0:00:14.6]} 63. h4 {[%clk 0:00:02.4]} 63...
Kxe4 {[%clk 0:00:15.5]} 64. h5 {[%clk 0:00:03]} 64... Kd3 {[%clk 0:00:16.3]} 65.
h6 {[%clk 0:00:03.8]} 65... Kxd2 {[%clk 0:00:16.6]} 66. h7 {[%clk 0:00:04.7]}
66... Kc2 {[%clk 0:00:17.5]} 67. h8=Q {[%clk 0:00:04.3]} 67... d3 {[%clk
0:00:18.4]} 68. Qh7 {[%clk 0:00:04.1]} 68... Kc3 {[%clk 0:00:18.4]} 69. Qe4
{[%clk 0:00:04]} 69... d2 {[%clk 0:00:18.5]} 70. Qe3+ {[%clk 0:00:04.4]} 70...
Kc2 {[%clk 0:00:18.8]} 71. Qe2 {[%clk 0:00:04.8]} 71... Kc3 {[%clk 0:00:18.6]}
72. Qe3+ {[%clk 0:00:04.8]} 72... Kc2 {[%clk 0:00:18.2]} 73. Qe2 {[%clk
0:00:05.2]} 73... Kc3 {[%clk 0:00:18.5]} 74. g5 {[%clk 0:00:04.9]} 74... Kc2
{[%clk 0:00:17.3]} 75. g6 {[%clk 0:00:05.1]} 75... Kc1 {[%clk 0:00:18.2]} 76. g7
{[%clk 0:00:04.3]} 76... d1=Q {[%clk 0:00:19.1]} 77. Qxd1+ {[%clk 0:00:04.3]}
77... Kxd1 {[%clk 0:00:20]} 78. g8=Q {[%clk 0:00:04.3]} 78... Kc2 {[%clk
0:00:20.9]} 79. Qd5 {[%clk 0:00:04.3]} 79... Kc3 {[%clk 0:00:21.8]} 80. Qxc5
{[%clk 0:00:04.7]} 80... Kb3 {[%clk 0:00:22.1]} 81. Qd5 {[%clk 0:00:05.2]} 81...
Kc3 {[%clk 0:00:23]} 82. c5 {[%clk 0:00:05.6]} 82... Kb4 {[%clk 0:00:23.4]} 83.
c6 {[%clk 0:00:06.5]} 83... Ka3 {[%clk 0:00:23.4]} 84. c7 {[%clk 0:00:07.4]}
84... Ka4 {[%clk 0:00:24.1]} 85. c8=Q {[%clk 0:00:08.2]} 85... Kb4 {[%clk
0:00:24.9]} 86. Qcc5+ {[%clk 0:00:08.4]} 86... Ka4 {[%clk 0:00:25.8]} 87. Qdc4#
{[%clk 0:00:08.5]} 1-0

[Event "Late-Titled-Tuesday-Blitz-April-30-2024"]
[Site "Chess.com"]
[Date "2024.04.30"]
[Round "6"]
[White "platy3"]
[Black "QuintilianoR"]
[Result "1-0"]
[WhiteElo "2882"]
[BlackElo "2718"]
[TimeControl "180+1"]
[EndTime "15:08:20 PDT"]
[Termination "platy3 won on time"]

1. e4 {[%clk 0:02:52.8]} 1... c5 {[%clk 0:02:58.1]} 2. Nf3 {[%clk 0:02:51.7]}
2... d6 {[%clk 0:02:56.2]} 3. d4 {[%clk 0:02:52.3]} 3... cxd4 {[%clk 0:02:57.1]}
4. Nxd4 {[%clk 0:02:53.2]} 4... Nf6 {[%clk 0:02:57.5]} 5. Nc3 {[%clk 0:02:54]}
5... g6 {[%clk 0:02:58.2]} 6. Be3 {[%clk 0:02:53.1]} 6... Bg7 {[%clk 0:02:58.4]}
7. f3 {[%clk 0:02:53.4]} 7... O-O {[%clk 0:02:58.8]} 8. Qd2 {[%clk 0:02:53.4]}
8... Nc6 {[%clk 0:02:58.9]} 9. O-O-O {[%clk 0:02:54.1]} 9... d5 {[%clk 0:02:59]}
10. exd5 {[%clk 0:02:51.6]} 10... Nxd5 {[%clk 0:02:58.6]} 11. Nxc6 {[%clk
0:02:52.3]} 11... bxc6 {[%clk 0:02:58.7]} 12. Bd4 {[%clk 0:02:52.7]} 12... e5
{[%clk 0:02:58.8]} 13. Bc5 {[%clk 0:02:52.2]} 13... Be6 {[%clk 0:02:58.7]} 14.
Ne4 {[%clk 0:02:52.4]} 14... Re8 {[%clk 0:02:58.8]} 15. h4 {[%clk 0:02:52.4]}
15... h6 {[%clk 0:02:58.5]} 16. Bc4 {[%clk 0:02:50.6]} 16... Qc7 {[%clk
0:02:58.2]} 17. Kb1 {[%clk 0:02:49.6]} 17... Red8 {[%clk 0:02:57.2]} 18. Qf2
{[%clk 0:02:46.2]} 18... f5 {[%clk 0:02:42.5]} 19. Nd2 {[%clk 0:02:38.1]} 19...
Rab8 {[%clk 0:02:33.8]} 20. Bb3 {[%clk 0:02:38.2]} 20... a5 {[%clk 0:02:32.9]}
21. a4 {[%clk 0:02:37.6]} 21... Nf4 {[%clk 0:02:28]} 22. Nc4 {[%clk 0:02:32.6]}
22... Rxd1+ {[%clk 0:02:02.1]} 23. Rxd1 {[%clk 0:02:32.2]} 23... Qf7 {[%clk
0:01:29.2]} 24. Nxa5 {[%clk 0:02:27.1]} 24... Bxb3 {[%clk 0:01:24.6]} 25. cxb3
{[%clk 0:02:26.6]} 25... e4 {[%clk 0:01:21.7]} 26. fxe4 {[%clk 0:02:22.6]} 26...
fxe4 {[%clk 0:01:16.9]} 27. Bd6 {[%clk 0:02:22.5]} 27... Rd8 {[%clk 0:01:10.5]}
28. Nc4 {[%clk 0:02:17.4]} 28... Qf5 {[%clk 0:01:03.5]} 29. Ka2 {[%clk
0:02:06.3]} 29... Nd3 {[%clk 0:01:01.5]} 30. Qb6 {[%clk 0:01:36.3]} 30... Rc8
{[%clk 0:01:01]} 31. Ba3 {[%clk 0:01:33.7]} 31... Qg4 {[%clk 0:00:52.7]} 32. Rd2
{[%clk 0:01:14.8]} 32... Qf4 {[%clk 0:00:48.5]} 33. a5 {[%clk 0:01:12.8]} 33...
Rb8 {[%clk 0:00:47.7]} 34. Qe3 {[%clk 0:01:05.4]} 34... Qxe3 {[%clk 0:00:43.3]}
35. Nxe3 {[%clk 0:01:06.3]} 35... Nc1+ {[%clk 0:00:44.2]} 36. Kb1 {[%clk
0:01:06.2]} 36... Nxb3 {[%clk 0:00:45.1]} 37. Rd7 {[%clk 0:01:03.5]} 37... Nxa5
{[%clk 0:00:44.9]} 38. b4 {[%clk 0:00:56.6]} 38... c5 {[%clk 0:00:43.4]} 39. b5
{[%clk 0:00:48.1]} 39... Rxb5+ {[%clk 0:00:41.8]} 40. Kc2 {[%clk 0:00:48.9]}
40... Nb3 {[%clk 0:00:38.7]} 41. Nd5 {[%clk 0:00:46]} 41... Nd4+ {[%clk
0:00:37.8]} 42. Kd2 {[%clk 0:00:46.6]} 42... Rb3 {[%clk 0:00:33.6]} 43. Bxc5
{[%clk 0:00:44.9]} 43... Rd3+ {[%clk 0:00:33.4]} 44. Ke1 {[%clk 0:00:45.7]}
44... Nf5 {[%clk 0:00:28.9]} 45. Bf2 {[%clk 0:00:28.2]} 45... Bc3+ {[%clk
0:00:27.8]} 46. Ke2 {[%clk 0:00:27.1]} 46... Rd2+ {[%clk 0:00:21.7]} 47. Kf1
{[%clk 0:00:27.6]} 47... e3 {[%clk 0:00:17.2]} 48. Be1 {[%clk 0:00:28.1]} 48...
e2+ {[%clk 0:00:14]} 49. Kf2 {[%clk 0:00:26.2]} 49... Bd4+ {[%clk 0:00:13.4]}
50. Kf3 {[%clk 0:00:25.7]} 50... Ra2 {[%clk 0:00:11]} 51. g4 {[%clk 0:00:22.5]}
51... Ra3+ {[%clk 0:00:08.9]} 52. Kxe2 {[%clk 0:00:21.6]} 52... Ng3+ {[%clk
0:00:09.1]} 53. Bxg3 {[%clk 0:00:17.5]} 53... Rxg3 {[%clk 0:00:10]} 54. Ne7+
{[%clk 0:00:17.9]} 54... Kf7 {[%clk 0:00:10]} 55. Nc6+ {[%clk 0:00:18.2]} 55...
Ke6 {[%clk 0:00:09.2]} 56. Rxd4 {[%clk 0:00:18.6]} 56... Rh3 {[%clk 0:00:09.2]}
57. Kf2 {[%clk 0:00:14.2]} 57... Rxh4 {[%clk 0:00:09.1]} 58. Kg3 {[%clk
0:00:14.8]} 58... Rh1 {[%clk 0:00:09.4]} 59. Rd2 {[%clk 0:00:06.3]} 59... h5
{[%clk 0:00:09.5]} 60. Nd4+ {[%clk 0:00:05.5]} 60... Kf7 {[%clk 0:00:09]} 61.
Rf2+ {[%clk 0:00:03.1]} 61... Kg8 {[%clk 0:00:07.8]} 62. Ne6 {[%clk 0:00:03.1]}
62... Rg1+ {[%clk 0:00:07]} 63. Kf4 {[%clk 0:00:03.6]} 63... Rxg4+ {[%clk
0:00:07.3]} 64. Ke5 {[%clk 0:00:04.2]} 64... h4 {[%clk 0:00:07.1]} 65. Rf8+
{[%clk 0:00:04.3]} 65... Kh7 {[%clk 0:00:07.5]} 66. Kf6 {[%clk 0:00:05]} 66...
h3 {[%clk 0:00:06.4]} 67. Ng5+ {[%clk 0:00:05.3]} 1-0

[Event "Late-Titled-Tuesday-Blitz-April-30-2024"]
[Site "Chess.com"]
[Date "2024.04.30"]
[Round "6"]
[White "XDPS"]
[Black "FabianoCaruana"]
[Result "1/2-1/2"]
[WhiteElo "2836"]
[BlackElo "3084"]
[TimeControl "180+1"]
[EndTime "15:08:36 PDT"]
[Termination "Game drawn - insufficient material"]

1. d4 {[%clk 0:03:00.9]} 1... Nf6 {[%clk 0:02:59.6]} 2. c4 {[%clk 0:03:01.4]}
2... e6 {[%clk 0:02:59.8]} 3. Nc3 {[%clk 0:03:01.9]} 3... Bb4 {[%clk 0:02:59.9]}
4. e3 {[%clk 0:03:02.6]} 4... O-O {[%clk 0:02:59]} 5. Bd2 {[%clk 0:03:02.7]}
5... d5 {[%clk 0:02:57.8]} 6. Nf3 {[%clk 0:03:00.9]} 6... Nbd7 {[%clk 0:02:58]}
7. Rc1 {[%clk 0:03:00.4]} 7... Be7 {[%clk 0:02:58]} 8. Bd3 {[%clk 0:02:59.3]}
8... dxc4 {[%clk 0:02:58.2]} 9. Bxc4 {[%clk 0:02:59.5]} 9... a6 {[%clk
0:02:58.5]} 10. O-O {[%clk 0:02:59.9]} 10... b5 {[%clk 0:02:58.6]} 11. Bb3
{[%clk 0:03:00.3]} 11... c5 {[%clk 0:02:58.6]} 12. dxc5 {[%clk 0:02:59.8]} 12...
Nxc5 {[%clk 0:02:58.7]} 13. Bc2 {[%clk 0:03:00.5]} 13... Bb7 {[%clk 0:02:58]}
14. Qe2 {[%clk 0:03:00.8]} 14... Qb6 {[%clk 0:02:45.9]} 15. Rfd1 {[%clk
0:03:00.2]} 15... Rfd8 {[%clk 0:02:42.5]} 16. Be1 {[%clk 0:03:00.7]} 16... b4
{[%clk 0:02:32.8]} 17. Na4 {[%clk 0:02:59.2]} 17... Nxa4 {[%clk 0:02:32.2]} 18.
Bxa4 {[%clk 0:02:59.6]} 18... a5 {[%clk 0:02:30.4]} 19. Ne5 {[%clk 0:02:51.8]}
19... Rxd1 {[%clk 0:02:18.3]} 20. Rxd1 {[%clk 0:02:48.7]} 20... Rd8 {[%clk
0:02:16.8]} 21. Bb3 {[%clk 0:02:31.2]} 21... Bd6 {[%clk 0:02:06]} 22. Nc4 {[%clk
0:02:13]} 22... Qc6 {[%clk 0:02:05.8]} 23. f3 {[%clk 0:02:06.2]} 23... Bc7
{[%clk 0:02:05.3]} 24. Rxd8+ {[%clk 0:02:04]} 24... Bxd8 {[%clk 0:02:06.2]} 25.
Qd3 {[%clk 0:01:54.7]} 25... Qd5 {[%clk 0:01:37.1]} 26. Qxd5 {[%clk 0:01:50.5]}
26... exd5 {[%clk 0:01:33]} 27. Nd6 {[%clk 0:01:42.7]} 27... Bc6 {[%clk
0:01:32.5]} 28. Nf5 {[%clk 0:01:42.9]} 28... Nd7 {[%clk 0:01:27.1]} 29. Bc2
{[%clk 0:01:40.6]} 29... Bf6 {[%clk 0:01:22.3]} 30. a3 {[%clk 0:01:34.2]} 30...
bxa3 {[%clk 0:01:12.2]} 31. bxa3 {[%clk 0:01:34]} 31... a4 {[%clk 0:01:12.2]}
32. Bb4 {[%clk 0:01:32.2]} 32... Nb6 {[%clk 0:00:34.5]} 33. Ne7+ {[%clk
0:01:31.3]} 33... Bxe7 {[%clk 0:00:34.8]} 34. Bxe7 {[%clk 0:01:32.2]} 34... Nc4
{[%clk 0:00:34.5]} 35. Bc5 {[%clk 0:01:32.5]} 35... h6 {[%clk 0:00:30.1]} 36.
Kf2 {[%clk 0:01:31.8]} 36... f6 {[%clk 0:00:30.6]} 37. h4 {[%clk 0:01:03.7]}
37... Kf7 {[%clk 0:00:24.7]} 38. h5 {[%clk 0:01:03.3]} 38... Ke6 {[%clk
0:00:24.7]} 39. g4 {[%clk 0:01:02.6]} 39... Ne5 {[%clk 0:00:16.4]} 40. Bf5+
{[%clk 0:00:52]} 40... Kf7 {[%clk 0:00:16.6]} 41. f4 {[%clk 0:00:52.1]} 41...
Nc4 {[%clk 0:00:14.8]} 42. Bg6+ {[%clk 0:00:48.2]} 42... Kg8 {[%clk 0:00:15]}
43. Bd3 {[%clk 0:00:42.4]} 43... Kf7 {[%clk 0:00:14.6]} 44. Bc2 {[%clk
0:00:19.7]} 44... Bb5 {[%clk 0:00:10.8]} 45. Bg6+ {[%clk 0:00:14.8]} 45... Kg8
{[%clk 0:00:10.6]} 46. e4 {[%clk 0:00:15.3]} 46... dxe4 {[%clk 0:00:06.9]} 47.
Bxe4 {[%clk 0:00:16.2]} 47... Nd2 {[%clk 0:00:06.4]} 48. Bd5+ {[%clk 0:00:16.1]}
48... Kh7 {[%clk 0:00:06.9]} 49. Ke3 {[%clk 0:00:15.8]} 49... Nb3 {[%clk
0:00:07.1]} 50. Bb4 {[%clk 0:00:11.9]} 50... Bd7 {[%clk 0:00:06.6]} 51. f5
{[%clk 0:00:11.3]} 51... Bb5 {[%clk 0:00:07.3]} 52. Be4 {[%clk 0:00:07.7]} 52...
Nc1 {[%clk 0:00:07]} 53. Bc2 {[%clk 0:00:07.4]} 53... Nb3 {[%clk 0:00:07]} 54.
Bd1 {[%clk 0:00:06.2]} 54... Kg8 {[%clk 0:00:07]} 55. Bd6 {[%clk 0:00:05.9]}
55... Bc6 {[%clk 0:00:06.6]} 56. Bc2 {[%clk 0:00:04.9]} 56... Kf7 {[%clk
0:00:06.6]} 57. Bb4 {[%clk 0:00:05.3]} 57... Bb5 {[%clk 0:00:06.1]} 58. Bd6
{[%clk 0:00:05]} 58... Kg8 {[%clk 0:00:05.8]} 59. Bd1 {[%clk 0:00:04.5]} 59...
Bc6 {[%clk 0:00:06.1]} 60. Be2 {[%clk 0:00:04.6]} 60... Kh7 {[%clk 0:00:04.9]}
61. Bc4 {[%clk 0:00:04.9]} 61... Na1 {[%clk 0:00:04.6]} 62. Bd3 {[%clk
0:00:04.5]} 62... Nb3 {[%clk 0:00:04.7]} 63. Bc4 {[%clk 0:00:04.6]} 63... Na1
{[%clk 0:00:04.8]} 64. Bb4 {[%clk 0:00:05]} 64... Nc2+ {[%clk 0:00:04.6]} 65.
Kd2 {[%clk 0:00:04.1]} 65... Nd4 {[%clk 0:00:04.6]} 66. Ke3 {[%clk 0:00:03.9]}
66... Nf3 {[%clk 0:00:03.9]} 67. Be2 {[%clk 0:00:03.7]} 67... Ne5 {[%clk
0:00:04.1]} 68. Bc3 {[%clk 0:00:04.2]} 68... Kg8 {[%clk 0:00:03.6]} 69. Bxe5
{[%clk 0:00:02.4]} 69... fxe5 {[%clk 0:00:04.5]} 70. Bf3 {[%clk 0:00:02.6]}
70... Bb5 {[%clk 0:00:02.4]} 71. Bd5+ {[%clk 0:00:03.1]} 71... Kf8 {[%clk
0:00:02.9]} 72. Ke4 {[%clk 0:00:03.5]} 72... Be2 {[%clk 0:00:03.5]} 73. Kxe5
{[%clk 0:00:03.6]} 73... Bxg4 {[%clk 0:00:03.8]} 74. Bc6 {[%clk 0:00:04.3]}
74... Bxh5 {[%clk 0:00:04.4]} 75. Bxa4 {[%clk 0:00:04.8]} 75... Bf3 {[%clk
0:00:04.4]} 76. Bc2 {[%clk 0:00:04.2]} 76... Ke7 {[%clk 0:00:04.1]} 77. a4
{[%clk 0:00:04.3]} 77... Kd7 {[%clk 0:00:04.4]} 78. a5 {[%clk 0:00:04.4]} 78...
Kc7 {[%clk 0:00:03.6]} 79. f6 {[%clk 0:00:03.2]} 79... gxf6+ {[%clk 0:00:03.5]}
80. Kxf6 {[%clk 0:00:04.1]} 80... Kb7 {[%clk 0:00:03.9]} 81. Kg6 {[%clk
0:00:04.5]} 81... Ka6 {[%clk 0:00:04.4]} 82. Kxh6 {[%clk 0:00:04.9]} 82... Kxa5
{[%clk 0:00:05.3]} 1/2-1/2

[Event "Late-Titled-Tuesday-Blitz-April-30-2024"]
[Site "Chess.com"]
[Date "2024.04.30"]
[Round "6"]
[White "DrVelja"]
[Black "Revan_2002"]
[Result "1-0"]
[WhiteElo "2971"]
[BlackElo "2764"]
[TimeControl "180+1"]
[EndTime "15:08:41 PDT"]
[Termination "DrVelja won by resignation"]

1. e4 {[%clk 0:02:59.4]} 1... e5 {[%clk 0:02:58.5]} 2. Nf3 {[%clk 0:02:59]} 2...
Nc6 {[%clk 0:02:58.9]} 3. Bb5 {[%clk 0:02:59.2]} 3... a6 {[%clk 0:02:55]} 4. Ba4
{[%clk 0:02:59.8]} 4... d6 {[%clk 0:02:54.4]} 5. O-O {[%clk 0:02:59.9]} 5... Bd7
{[%clk 0:02:53.7]} 6. c4 {[%clk 0:02:55.2]} 6... Nf6 {[%clk 0:02:53.1]} 7. Re1
{[%clk 0:02:52.3]} 7... g6 {[%clk 0:02:53.4]} 8. Bxc6 {[%clk 0:02:52.7]} 8...
bxc6 {[%clk 0:02:50.8]} 9. d4 {[%clk 0:02:53.2]} 9... Qe7 {[%clk 0:02:23.5]} 10.
b3 {[%clk 0:02:32.9]} 10... Bg4 {[%clk 0:01:56.1]} 11. Bb2 {[%clk 0:02:26.7]}
11... Nd7 {[%clk 0:01:50.1]} 12. Nbd2 {[%clk 0:02:22.8]} 12... Bg7 {[%clk
0:01:49.2]} 13. h3 {[%clk 0:02:22.6]} 13... Bxf3 {[%clk 0:01:48.1]} 14. Nxf3
{[%clk 0:02:23.5]} 14... O-O {[%clk 0:01:47.9]} 15. Qc2 {[%clk 0:02:23]} 15...
c5 {[%clk 0:01:26.1]} 16. dxc5 {[%clk 0:02:11.4]} 16... Nxc5 {[%clk 0:01:25.9]}
17. b4 {[%clk 0:02:10.9]} 17... Ne6 {[%clk 0:01:25.7]} 18. c5 {[%clk 0:02:00.4]}
18... dxc5 {[%clk 0:01:04.3]} 19. Nxe5 {[%clk 0:01:54.7]} 19... cxb4 {[%clk
0:00:44.2]} 20. Nc6 {[%clk 0:01:46.5]} 20... Qc5 {[%clk 0:00:43.2]} 21. Qxc5
{[%clk 0:01:34.4]} 21... Nxc5 {[%clk 0:00:44.1]} 22. Bxg7 {[%clk 0:01:34.9]}
22... Kxg7 {[%clk 0:00:43.8]} 23. Nxb4 {[%clk 0:01:35.7]} 23... a5 {[%clk
0:00:40.1]} 24. Nd5 {[%clk 0:01:26.5]} 24... c6 {[%clk 0:00:38.7]} 25. Nb6
{[%clk 0:01:20.6]} 25... Ra6 {[%clk 0:00:35.1]} 26. Nc4 {[%clk 0:01:20.6]} 26...
a4 {[%clk 0:00:33.5]} 27. f3 {[%clk 0:01:18.1]} 27... Rd8 {[%clk 0:00:30.3]} 28.
Red1 {[%clk 0:01:16]} 28... Rxd1+ {[%clk 0:00:24.8]} 29. Rxd1 {[%clk 0:01:16.9]}
29... a3 {[%clk 0:00:25.4]} 30. Rc1 {[%clk 0:00:55.3]} 30... Nd3 {[%clk
0:00:19.4]} 31. Rb1 {[%clk 0:00:45.1]} 31... c5 {[%clk 0:00:13]} 32. Rb3 {[%clk
0:00:45.2]} 32... Nb4 {[%clk 0:00:10.9]} 33. Nxa3 {[%clk 0:00:44.9]} 33... Nxa2
{[%clk 0:00:11.3]} 34. h4 {[%clk 0:00:36.9]} 34... Nc1 {[%clk 0:00:11.3]} 35.
Re3 {[%clk 0:00:36.7]} 35... Ra4 {[%clk 0:00:10.7]} 36. Kf1 {[%clk 0:00:34.2]}
36... c4 {[%clk 0:00:09.8]} 37. g3 {[%clk 0:00:21.5]} 37... Nb3 {[%clk
0:00:06.9]} 38. Nxc4 {[%clk 0:00:20.1]} 38... Nd4 {[%clk 0:00:04.3]} 39. Ne5
{[%clk 0:00:15.6]} 39... Ra1+ {[%clk 0:00:04.2]} 40. Kg2 {[%clk 0:00:16.2]}
40... Ra2+ {[%clk 0:00:04.4]} 41. Kh3 {[%clk 0:00:16.9]} 41... h5 {[%clk
0:00:04.2]} 42. f4 {[%clk 0:00:05.7]} 42... Ne2 {[%clk 0:00:03.7]} 43. Nf3
{[%clk 0:00:06.3]} 43... Rc2 {[%clk 0:00:02.1]} 44. e5 {[%clk 0:00:06.5]} 44...
Nc3 {[%clk 0:00:02.1]} 45. e6 {[%clk 0:00:04.4]} 45... fxe6 {[%clk 0:00:01.9]}
46. Rxe6 {[%clk 0:00:05.1]} 46... Ne2 {[%clk 0:00:02.2]} 47. Re3 {[%clk
0:00:03.1]} 47... Kf6 {[%clk 0:00:02.2]} 48. Re5 {[%clk 0:00:02.2]} 48... Ra2
{[%clk 0:00:01.7]} 49. Rb5 {[%clk 0:00:02.1]} 49... Kf7 {[%clk 0:00:01.9]} 50.
Rc5 {[%clk 0:00:02.6]} 50... Kf6 {[%clk 0:00:02.2]} 51. Rc6+ {[%clk 0:00:02.3]}
51... Kg7 {[%clk 0:00:02.8]} 52. Re6 {[%clk 0:00:02.5]} 52... Kf7 {[%clk
0:00:02.9]} 53. Re3 {[%clk 0:00:02.9]} 53... Kf6 {[%clk 0:00:02.4]} 54. Rd3
{[%clk 0:00:03.1]} 54... Kg7 {[%clk 0:00:02.6]} 55. Rd1 {[%clk 0:00:03.7]} 55...
Kf6 {[%clk 0:00:02.7]} 56. Re1 {[%clk 0:00:04.4]} 56... Nc3 {[%clk 0:00:02.5]}
57. Re3 {[%clk 0:00:04.2]} 57... Ne2 {[%clk 0:00:02.7]} 58. Re4 {[%clk
0:00:04.6]} 58... Kf7 {[%clk 0:00:03.1]} 59. Rb4 {[%clk 0:00:04.5]} 59... Kf6
{[%clk 0:00:03.5]} 60. Rb1 {[%clk 0:00:05.2]} 60... Kg7 {[%clk 0:00:03.5]} 61.
Re1 {[%clk 0:00:05.6]} 61... Kf6 {[%clk 0:00:03.7]} 62. Ne5 {[%clk 0:00:05.4]}
62... Nd4 {[%clk 0:00:03]} 63. Nd3 {[%clk 0:00:04]} 63... Nf3 {[%clk 0:00:03]}
64. Rh1 {[%clk 0:00:03]} 64... Kf5 {[%clk 0:00:03]} 65. Ne1 {[%clk 0:00:03.1]}
65... Ra1 {[%clk 0:00:02.5]} 66. Nxf3 {[%clk 0:00:02.2]} 66... Rxh1+ {[%clk
0:00:03.1]} 67. Kg2 {[%clk 0:00:03.1]} 67... Ra1 {[%clk 0:00:03.6]} 68. Ne5
{[%clk 0:00:03.1]} 68... Ra2+ {[%clk 0:00:03.1]} 69. Kh3 {[%clk 0:00:03.8]}
69... Ra6 {[%clk 0:00:03.7]} 70. Kg2 {[%clk 0:00:04.3]} 70... Ke4 {[%clk
0:00:03.9]} 71. Kh3 {[%clk 0:00:04.2]} 71... Ke3 {[%clk 0:00:04]} 72. Kg2 {[%clk
0:00:04.7]} 72... Ke2 {[%clk 0:00:04.4]} 73. Kg1 {[%clk 0:00:04.8]} 73... Ke3
{[%clk 0:00:04.6]} 74. Kg2 {[%clk 0:00:05.5]} 74... Ke4 {[%clk 0:00:04.8]} 75.
Kg1 {[%clk 0:00:05.2]} 75... Kf5 {[%clk 0:00:04.6]} 76. Kg2 {[%clk 0:00:05.9]}
76... Ra3 {[%clk 0:00:04.1]} 77. Kh3 {[%clk 0:00:06.2]} 77... Ra2 {[%clk
0:00:04.5]} 78. Nf3 {[%clk 0:00:06]} 78... Re2 {[%clk 0:00:04.2]} 79. Nd4+
{[%clk 0:00:05.3]} 1-0